fUST/lending_fUST_20250615
["ID","MTS","AMOUNT","RATE_DAILY","PERIOD"]
[365803527,1749924639599,-151.0,0.00022465,7]
[365803528,1749924639610,-460.0,0.00022465,4]
[365803529,1749924639620,-460.0,0.00022465,4]
[365803530,1749924639630,-460.0,0.00022465,4]
[365803531,1749924639642,-460.0,0.00022465,4]
[365803532,1749924639651,-151.0,0.00022465,7]
[365803533,1749924639661,-151.0,0.00022465,7]
[365803534,1749924639671,-151.0,0.00022465,7]
[365803535,1749924639681,-460.0,0.00022465,4]
[365803536,1749924639691,-460.0,0.00022465,4]
[365803537,1749924639701,-460.0,0.00022465,4]
[365803538,1749924639711,-151.0,0.00022465,7]
[365803539,1749924639719,-151.0,0.00022465,7]
[365803540,1749924639729,-197.826638,0.00022465,7]
[365803541,1749924639739,-460.0,0.00022465,4]
[365803542,1749924639749,-460.0,0.00022465,4]
[365803543,1749924639758,-197.826638,0.00022465,7]
[365803544,1749924639767,-663.99,0.00022465,4]
[365803545,1749924639777,-460.0,0.00022465,4]
[365803546,1749924639786,-151.0,0.00022465,7]
[365803547,1749924639796,-460.0,0.00022465,4]
[365803548,1749924639806,-460.0,0.00022465,4]
[365803549,1749924639815,-1867.23,0.00022465,4]
[365803550,1749924639824,-460.0,0.00022465,4]
[365803551,1749924639833,-151.0,0.00022465,7]
[365803552,1749924639842,-951.14,0.00022465,4]
[365803553,1749924639852,-1111.84,0.00022465,4]
[365803554,1749924639860,-552.61,0.00022465,4]
[365803555,1749924639870,-1345.4,0.00022465,4]
[365803556,1749924639879,-460.0,0.00022465,4]
[365803557,1749924639890,-460.0,0.00022465,4]
[365803558,1749924639899,-460.0,0.00022465,4]
[365803559,1749924639908,-300.0,0.00022465,4]
[365803560,1749924639917,-151.0,0.00022465,7]
[365803561,1749924639927,-2920.66,0.00022465,4]
[365803562,1749924639935,-640.04,0.00022465,4]
[365803563,1749924639944,-460.0,0.00022465,4]
[365803564,1749924639953,-460.0,0.00022465,4]
[365803565,1749924639963,-460.0,0.00022465,4]
[365803566,1749924639972,-315.82734478,0.00022465,4]
[365803567,1749924639981,-522.2,0.00022465,4]
[365803568,1749924639990,-360.0,0.00022465,4]
[365803569,1749924639999,-1305.16,0.00022465,4]
[365803570,1749924640009,-460.0,0.00022465,4]
[365803571,1749924640018,-460.0,0.00022465,4]
[365803572,1749924640027,-1489.11,0.00022465,4]
[365803573,1749924640037,-460.0,0.00022465,4]
[365803574,1749924640046,-460.0,0.00022465,4]
[365803575,1749924640055,-1020.4,0.00022465,4]
[365803576,1749924640064,-259.83177003,0.00022465,4]
[365803577,1749924640074,-460.0,0.00022465,4]
[365803578,1749924640085,-2400.67,0.00022465,4]
[365803579,1749924640095,-542.66,0.00022465,4]
[365803580,1749924640104,-460.0,0.00022465,4]
[365803581,1749924640114,-185.0,0.00022465,7]
[365803582,1749924640123,-2715.38,0.00022465,4]
[365803583,1749924640132,-185.0,0.00022465,7]
[365803584,1749924640143,-714.26,0.00022465,2]
[365803585,1749924640153,-3104.67,0.00022465,4]
[365803586,1749924640162,-1433.54,0.00022465,4]
[365803587,1749924640172,-460.0,0.00022465,4]
[365803588,1749924640181,-478.13,0.00022465,4]
[365803589,1749924640191,-460.0,0.00022465,4]
[365803590,1749924640200,-460.0,0.00022465,4]
[365803591,1749924640209,-460.0,0.00022465,4]
[365803592,1749924640219,-2666.98,0.00022465,4]
[365803593,1749924640228,-460.0,0.00022465,4]
[365803594,1749924640237,-460.0,0.00022465,4]
[365803595,1749924640247,-460.0,0.00022465,4]
[365803596,1749924640256,-460.0,0.00022465,4]
[365803597,1749924640265,-1487.25,0.00022465,4]
[365803598,1749924640274,-153.609304,0.00022465,7]
[365803599,1749924640284,-1782.67,0.00022465,4]
[365803600,1749924640293,-197.139781,0.00022465,7]
[365803601,1749924640302,-2215.93,0.00022465,4]
[365803602,1749924640312,-2884.29,0.00022465,4]
[365803603,1749924640321,-197.139781,0.00022465,7]
[365803604,1749924640330,-460.0,0.00022465,4]
[365803605,1749924640339,-181.95830964,0.00022465,4]
[365803606,1749924640348,-1040.75,0.00022465,4]
[365803607,1749924640358,-460.0,0.00022465,4]
[365803608,1749924640367,-1157.61,0.00022465,4]
[365803609,1749924640377,-460.0,0.00022465,4]
[365803611,1749924640388,-504.86,0.00022465,4]
[365803613,1749924640397,-928.55,0.00022465,4]
[365803615,1749924640407,-154.732959,0.00022465,7]
[365803617,1749924640416,-1529.6,0.00022465,4]
[365803619,1749924640425,-460.0,0.00022465,4]
[365803621,1749924640435,-154.732959,0.00022465,7]
[365803623,1749924640445,-448.07493434,0.00022466,2]
[365803625,1749924640454,-573.7859869,0.00022521,2]
[365803627,1749924640464,-158.8714084,0.00022521,2]
[365803629,1749924640473,-158.8714084,0.00022521,2]
[365803631,1749924640483,-153.0,0.00022521,2]
[365803632,1749924640492,-158.8714084,0.00022521,2]
[365803635,1749924640501,-153.0,0.00022521,2]
[365803636,1749924640511,-153.0,0.00022521,2]
[365803638,1749924640520,-153.0,0.00022521,2]
[365803640,1749924640529,-1188.40389234,0.00022555,7]
[365803642,1749924640544,-704.9913142,0.00022659,2]
[365803644,1749924640553,-40000.0,0.0002266,2]
[365803647,1749924640563,-151.0,0.0002266,7]
[365803648,1749924640573,-151.0,0.0002266,7]
[365803650,1749924640583,-151.0,0.0002267,7]
[365803653,1749924640592,-151.0,0.0002267,7]
[365803654,1749924640602,-151.0,0.0002267,7]
[365803656,1749924640611,-164.389164,0.0002267,7]
[365803658,1749924640621,-164.389164,0.0002267,7]
[365803660,1749924640630,-1188.40389234,0.00022693,7]
[365803662,1749924640641,-151.0,0.00022725,7]
[365803664,1749924640651,-151.0,0.00022725,7]
[365803666,1749924640661,-153.0,0.00022725,2]
[365803668,1749924640670,-153.0,0.00022725,2]
[365803670,1749924640679,-153.0,0.00022725,2]
[365803672,1749924640689,-153.0,0.00022725,2]
[365803674,1749924640698,-153.0,0.00022725,2]
[365803676,1749924640707,-153.0,0.00022725,2]
[365803678,1749924640717,-153.0,0.00022725,2]
[365803680,1749924640726,-153.0,0.00022725,2]
[365803682,1749924640735,-153.0,0.00022725,2]
[365803684,1749924640745,-153.0,0.00022725,2]
[365803686,1749924640754,-153.0,0.00022725,2]
[365803688,1749924640763,-153.0,0.00022725,2]
[365803690,1749924640773,-153.0,0.00022725,2]
[365803692,1749924640783,-153.0,0.00022725,2]
[365803694,1749924640792,-153.0,0.00022725,2]
[365803696,1749924640803,-153.0,0.00022725,2]
[365803698,1749924640812,-153.0,0.00022725,2]
[365803700,1749924640821,-153.0,0.00022725,2]
[365803702,1749924640831,-153.0,0.00022725,2]
[365803704,1749924640840,-153.0,0.00022725,2]
[365803707,1749924640849,-153.0,0.00022725,2]
[365803708,1749924640858,-153.0,0.00022725,2]
[365803710,1749924640868,-153.0,0.00022725,2]
[365803713,1749924640878,-153.0,0.00022725,2]
[365803715,1749924640889,-153.0,0.00022725,2]
[365803717,1749924640899,-153.0,0.00022725,2]
[365803719,1749924640908,-153.0,0.00022725,2]
[365803721,1749924640918,-153.0,0.00022725,2]
[365803723,1749924640927,-153.0,0.00022725,2]
[365803724,1749924640936,-153.0,0.00022725,2]
[365803727,1749924640946,-153.0,0.00022725,2]
[365803729,1749924640955,-153.0,0.00022725,2]
[365803731,1749924640964,-153.0,0.00022725,2]
[365803732,1749924640973,-153.0,0.00022725,2]
[365803734,1749924640982,-153.0,0.00022725,2]
[365803736,1749924640991,-153.0,0.00022725,2]
[365803738,1749924641001,-153.0,0.00022725,2]
[365803740,1749924641010,-153.0,0.00022725,2]
[365803742,1749924641019,-153.0,0.00022725,2]
[365803744,1749924641028,-153.0,0.00022725,2]
[365803746,1749924641038,-153.0,0.00022725,2]
[365803748,1749924641049,-153.0,0.00022725,2]
[365803750,1749924641058,-153.0,0.00022725,2]
[365803751,1749924641067,-153.0,0.00022725,2]
[365803753,1749924641076,-153.0,0.00022725,2]
[365803755,1749924641086,-153.0,0.00022725,2]
[365803757,1749924641095,-153.0,0.00022725,2]
[365803759,1749924641104,-153.0,0.00022725,2]
[365803761,1749924641113,-153.0,0.00022725,2]
[365803762,1749924641122,-153.0,0.00022725,2]
[365803764,1749924641131,-153.0,0.00022725,2]
[365803765,1749924641143,-153.0,0.00022725,2]
[365803766,1749924641152,-153.0,0.00022725,2]
[365803767,1749924641161,-153.0,0.00022725,2]
[365803768,1749924641170,-153.0,0.00022725,2]
[365803769,1749924641179,-153.0,0.00022725,2]
[365803770,1749924641188,-153.0,0.00022725,2]
[365803771,1749924641198,-153.0,0.00022725,2]
[365803772,1749924641207,-153.0,0.00022725,2]
[365803773,1749924641216,-151.0,0.00022739,7]
[365803774,1749924641226,-151.0,0.00022739,7]
[365803775,1749924641235,-151.0,0.00022739,7]
[365803776,1749924641245,-151.0,0.00022739,7]
[365803777,1749924641254,-460.0,0.00022739,4]
[365803778,1749924641263,-543.53,0.00022739,4]
[365803779,1749924641272,-151.0,0.00022739,7]
[365803780,1749924641281,-320.0,0.00022739,4]
[365803781,1749924641291,-151.0,0.00022739,7]
[365803782,1749924641300,-518.678294,0.00022739,2]
[365803783,1749924641309,-518.678294,0.00022739,2]
[365803784,1749924641318,-460.0,0.00022739,4]
[365803785,1749924641327,-460.0,0.00022739,4]
[365803786,1749924641337,-193.59544499,0.00022739,4]
[365803787,1749924641347,-151.0,0.00022739,7]
[365803788,1749924641356,-529.32423968,0.00022739,4]
[365803789,1749924641366,-460.0,0.00022739,4]
[365803790,1749924641375,-460.0,0.00022739,4]
[365803791,1749924641385,-460.0,0.00022739,4]
[365803792,1749924641397,-1489.84,0.00022739,4]
[365803793,1749924641406,-151.0,0.00022739,7]
[365803794,1749924641415,-400.0,0.00022739,4]
[365803795,1749924641433,-460.0,0.00022739,4]
[365803796,1749924641442,-183.512585,0.00022739,7]
[365803797,1749924641452,-460.0,0.00022739,4]
[365803798,1749924641461,-460.0,0.00022739,4]
[365803799,1749924641471,-325.93064828,0.00022739,4]
[365803800,1749924641481,-151.0,0.00022739,7]
[365803801,1749924641491,-534.92835629,0.00022739,4]
[365803802,1749924641501,-460.0,0.00022739,4]
[365803803,1749924641511,-460.0,0.00022739,4]
[365803804,1749924641520,-360.22664354,0.00022739,4]
[365803805,1749924641530,-151.0,0.00022739,7]
[365803806,1749924641548,-151.0,0.00022739,7]
[365803807,1749924641557,-151.0,0.00022739,7]
[365803808,1749924641567,-460.0,0.00022739,4]
[365803809,1749924641576,-460.0,0.00022739,4]
[365803810,1749924641585,-151.0,0.00022739,7]
[365803811,1749924641595,-151.0,0.00022739,7]
[365803812,1749924641604,-197.826638,0.00022739,7]
[365803813,1749924641614,-430.0,0.00022739,4]
[365803814,1749924641623,-460.0,0.00022739,4]
[365803815,1749924641633,-197.826638,0.00022739,7]
[365803816,1749924641643,-663.99,0.00022739,4]
[365803817,1749924641652,-460.0,0.00022739,4]
[365803818,1749924641662,-460.0,0.00022739,4]
[365803819,1749924641671,-1867.23,0.00022739,4]
[365803820,1749924641681,-460.0,0.00022739,4]
[365803821,1749924641690,-151.0,0.00022739,7]
[365803822,1749924641700,-951.14,0.00022739,4]
[365803823,1749924641710,-1111.84,0.00022739,4]
[365803824,1749924641719,-552.61,0.00022739,4]
[365803825,1749924641729,-1345.4,0.00022739,4]
[365803826,1749924641738,-440.0,0.00022739,4]
[365803827,1749924641748,-151.0,0.00022739,7]
[365803828,1749924641757,-2920.66,0.00022739,4]
[365803829,1749924641766,-640.04,0.00022739,4]
[365803830,1749924641776,-460.0,0.00022739,4]
[365803831,1749924641786,-460.0,0.00022739,4]
[365803832,1749924641795,-522.2,0.00022739,4]
[365803833,1749924641804,-1305.16,0.00022739,4]
[365803834,1749924641814,-460.0,0.00022739,4]
[365803835,1749924641823,-400.0,0.00022739,4]
[365803836,1749924641832,-1489.11,0.00022739,4]
[365803837,1749924641842,-460.0,0.00022739,4]
[365803838,1749924641851,-460.0,0.00022739,4]
[365803839,1749924641862,-1020.4,0.00022739,4]
[365803840,1749924641872,-361.45555516,0.00022739,4]
[365803841,1749924641882,-2400.67,0.00022739,4]
[365803842,1749924641892,-542.66,0.00022739,4]
[365803843,1749924641902,-460.0,0.00022739,4]
[365803844,1749924641912,-185.0,0.00022739,7]
[365803845,1749924641923,-2715.38,0.00022739,4]
[365803846,1749924641933,-185.0,0.00022739,7]
[365803847,1749924641943,-714.26,0.00022739,2]
[365803848,1749924641953,-3104.67,0.00022739,4]
[365803849,1749924641963,-1433.54,0.00022739,4]
[365803850,1749924641972,-460.0,0.00022739,4]
[365803851,1749924641982,-478.13,0.00022739,4]
[365803852,1749924641991,-460.0,0.00022739,4]
[365803853,1749924642000,-460.0,0.00022739,4]
[365803854,1749924642010,-2666.98,0.00022739,4]
[365803855,1749924642019,-460.0,0.00022739,4]
[365803856,1749924642031,-460.0,0.00022739,4]
[365803857,1749924642041,-460.0,0.00022739,4]
[365803858,1749924642051,-460.0,0.00022739,4]
[365803859,1749924642061,-1487.25,0.00022739,4]
[365803860,1749924642071,-1782.67,0.00022739,4]
[365803861,1749924642081,-197.139781,0.00022739,7]
[365803862,1749924642091,-2215.93,0.00022739,4]
[365803863,1749924642101,-2884.29,0.00022739,4]
[365803864,1749924642111,-197.139781,0.00022739,7]
[365803865,1749924642121,-460.0,0.00022739,4]
[365803866,1749924642131,-1040.75,0.00022739,4]
[365803867,1749924642140,-460.0,0.00022739,4]
[365803868,1749924642150,-1157.61,0.00022739,4]
[365803869,1749924642160,-460.0,0.00022739,4]
[365803870,1749924642169,-504.86,0.00022739,4]
[365803871,1749924642180,-928.55,0.00022739,4]
[365803872,1749924642189,-154.732959,0.00022739,7]
[365803873,1749924642199,-1529.6,0.00022739,4]
[365803874,1749924642209,-460.0,0.00022739,4]
[365803875,1749924642219,-1188.40389234,0.00022831,8]
[365803876,1749924642229,-1000.0,0.00022838,2]
[365803877,1749924642239,-5000.0,0.00022868,2]
[365803878,1749924642249,-2692.18,0.0002292,2]
[365803879,1749924642259,-1188.40389234,0.00022969,8]
[365803880,1749924642269,-213.28201367,0.00022976,2]
[365803881,1749924642280,-845.10789306,0.00022976,2]
[365803882,1749924642291,-500.0,0.00023,2]
[365803883,1749924642301,-500.0,0.00023,2]
[365803884,1749924642311,-10000.0,0.00023,10]
[365803885,1749924642322,-845.10789306,0.00023,10]
[365803886,1749924642332,-2753.22,0.00023,7]
[365803887,1749924642343,-315.3423008,0.00023,10]
[365803888,1749924642354,-213.28201367,0.00023,10]
[365803889,1749924642364,-151.0,0.00023013,7]
[365803890,1749924642374,-151.0,0.00023013,7]
[365803891,1749924642385,-151.0,0.00023013,7]
[365803892,1749924642396,-151.0,0.00023013,7]
[365803893,1749924642408,-151.0,0.00023013,7]
[365803894,1749924642418,-151.0,0.00023013,7]
[365803895,1749924642427,-164.389164,0.00023013,7]
[365803896,1749924642437,-164.389164,0.00023013,7]
[365803897,1749924642446,-543.53,0.00023013,4]
[365803898,1749924642456,-151.0,0.00023013,7]
[365803899,1749924642466,-460.0,0.00023013,4]
[365803900,1749924642475,-460.0,0.00023013,4]
[365803901,1749924642486,-460.0,0.00023013,4]
[365803902,1749924642496,-387.9,0.00023013,4]
[365803903,1749924642506,-460.0,0.00023013,4]
[365803904,1749924642516,-1489.84,0.00023013,4]
[365803905,1749924642525,-151.0,0.00023013,7]
[365803906,1749924642536,-460.0,0.00023013,4]
[365803907,1749924642546,-283.30660537,0.00023013,4]
[365803908,1749924642556,-460.0,0.00023013,4]
[365803909,1749924642566,-460.0,0.00023013,4]
[365803910,1749924642575,-460.0,0.00023013,4]
[365803911,1749924642585,-153.379468,0.00023013,7]
[365803912,1749924642595,-151.0,0.00023013,7]
[365803913,1749924642605,-222.224892,0.00023013,7]
[365803914,1749924642718,-460.0,0.00023013,4]
[365803915,1749924642747,-151.0,0.00023013,7]
[365803916,1749924642757,-151.0,0.00023013,7]
[365803917,1749924642767,-197.826638,0.00023013,7]
[365803918,1749924642776,-460.0,0.00023013,4]
[365803919,1749924642786,-197.826638,0.00023013,7]
[365803920,1749924642795,-663.99,0.00023013,4]
[365803921,1749924642804,-460.0,0.00023013,4]
[365803922,1749924642814,-460.0,0.00023013,4]
[365803923,1749924642823,-1867.23,0.00023013,4]
[365803924,1749924642832,-460.0,0.00023013,4]
[365803925,1749924642842,-151.0,0.00023013,7]
[365803926,1749924642851,-951.14,0.00023013,4]
[365803927,1749924642862,-1111.84,0.00023013,4]
[365803928,1749924642872,-552.61,0.00023013,4]
[365803929,1749924642882,-1345.4,0.00023013,4]
[365803930,1749924642894,-151.0,0.00023013,7]
[365803931,1749924642903,-2920.66,0.00023013,4]
[365803932,1749924642913,-640.04,0.00023013,4]
[365803933,1749924642922,-460.0,0.00023013,4]
[365803934,1749924642933,-460.0,0.00023013,4]
[365803935,1749924642943,-522.2,0.00023013,4]
[365803936,1749924642953,-1305.16,0.00023013,4]
[365803937,1749924642962,-360.0,0.00023013,4]
[365803938,1749924642972,-1489.11,0.00023013,4]
[365803939,1749924642982,-460.0,0.00023013,4]
[365803940,1749924642991,-190.0,0.00023013,4]
[365803941,1749924643001,-1020.4,0.00023013,4]
[365803942,1749924643011,-2400.67,0.00023013,4]
[365803943,1749924643021,-542.66,0.00023013,4]
[365803944,1749924643030,-460.0,0.00023013,4]
[365803945,1749924643040,-185.0,0.00023013,7]
[365803946,1749924643050,-2715.38,0.00023013,4]
[365803947,1749924643059,-185.0,0.00023013,7]
[365803948,1749924643068,-714.26,0.00023013,2]
[365803949,1749924643078,-3104.67,0.00023013,4]
[365803950,1749924643087,-1433.54,0.00023013,4]
[365803951,1749924643097,-373.13753151,0.00023013,4]
[365803952,1749924643107,-478.13,0.00023013,4]
[365803953,1749924643116,-460.0,0.00023013,4]
[365803954,1749924643125,-596.23061892,0.00023013,4]
[365803955,1749924643135,-2666.98,0.00023013,4]
[365803956,1749924643146,-460.0,0.00023013,4]
[365803957,1749924643156,-460.0,0.00023013,4]
[365803958,1749924643167,-400.0,0.00023013,4]
[365803959,1749924643176,-460.0,0.00023013,4]
[365803960,1749924643186,-1487.25,0.00023013,4]
[365803961,1749924643195,-1782.67,0.00023013,4]
[365803962,1749924643205,-197.139781,0.00023013,7]
[365803963,1749924643214,-2215.93,0.00023013,4]
[365803964,1749924643224,-2884.29,0.00023013,4]
[365803965,1749924643233,-197.139781,0.00023013,7]
[365803966,1749924643243,-460.0,0.00023013,4]
[365803967,1749924643253,-1040.75,0.00023013,4]
[365803968,1749924643262,-460.0,0.00023013,4]
[365803969,1749924643273,-1157.61,0.00023013,4]
[365803971,1749924643282,-460.0,0.00023013,4]
[365803972,1749924643292,-504.86,0.00023013,4]
[365803974,1749924643302,-928.55,0.00023013,4]
[365803975,1749924643311,-154.732959,0.00023013,7]
[365803976,1749924643321,-1529.6,0.00023013,4]
[365803977,1749924643331,-460.0,0.00023013,4]
[365803978,1749924643340,-186.68,0.00023029,2]
[365803979,1749924643351,-704.9913142,0.00023079,2]
[365803980,1749924643362,-835.41710878,0.00023086,2]
[365803981,1749924643372,-229.82479369,0.00023086,2]
[365803982,1749924643382,-12533.30537164,0.00023086,2]
[365803983,1749924643392,-365.2762568,0.00023096,2]
[365803984,1749924643402,-365.2762568,0.00023096,2]
[365803985,1749924643413,-365.2762568,0.00023096,2]
[365803986,1749924643423,-365.2762568,0.00023096,2]
[365803987,1749924643433,-365.2762568,0.00023096,2]
[365803988,1749924643443,-365.2762568,0.00023096,2]
[365803989,1749924643453,-365.2762568,0.00023096,2]
[365803990,1749924643463,-365.2762568,0.00023096,2]
[365803991,1749924643472,-160.0,0.00023097,2]
[365803992,1749924643483,-1188.40389234,0.00023107,8]
[365803993,1749924643494,-800.0,0.00023199,2]
[365803994,1749924643505,-195.0,0.00023206,2]
[365803995,1749924643515,-800.0,0.0002322,2]
[365803996,1749924643525,-800.0,0.00023241,2]
[365803997,1749924643540,-1188.40389234,0.00023245,8]
[365803998,1749924643560,-365.2,0.00023277,3]
[365803999,1749924643575,-151.0,0.00023287,7]
[365804000,1749924643585,-151.0,0.00023287,7]
[365804001,1749924643596,-151.0,0.00023287,7]
[365804002,1749924643606,-151.0,0.00023287,7]
[365804003,1749924643617,-543.53,0.00023287,4]
[365804004,1749924643627,-518.678294,0.00023287,2]
[365804005,1749924643637,-518.678294,0.00023287,2]
[365804006,1749924643648,-460.0,0.00023287,4]
[365804007,1749924643658,-460.0,0.00023287,4]
[365804008,1749924643668,-151.0,0.00023287,7]
[365804009,1749924643678,-460.0,0.00023287,4]
[365804010,1749924643688,-460.0,0.00023287,4]
[365804011,1749924643698,-1489.84,0.00023287,4]
[365804012,1749924643708,-460.0,0.00023287,4]
[365804013,1749924643718,-460.0,0.00023287,4]
[365804014,1749924643727,-460.0,0.00023287,4]
[365804015,1749924643737,-460.0,0.00023287,4]
[365804016,1749924643746,-460.0,0.00023287,4]
[365804017,1749924643756,-460.0,0.00023287,4]
[365804018,1749924643765,-663.99,0.00023287,4]
[365804019,1749924643775,-460.0,0.00023287,4]
[365804020,1749924643785,-460.0,0.00023287,4]
[365804021,1749924643795,-1867.23,0.00023287,4]
[365804022,1749924643804,-460.0,0.00023287,4]
[365804023,1749924643813,-151.0,0.00023287,7]
[365804024,1749924643823,-951.14,0.00023287,4]
[365804025,1749924643833,-1111.84,0.00023287,4]
[365804026,1749924643843,-552.61,0.00023287,4]
[365804027,1749924643852,-1345.4,0.00023287,4]
[365804028,1749924643861,-2920.66,0.00023287,4]
[365804029,1749924643872,-640.04,0.00023287,4]
[365804030,1749924643881,-460.0,0.00023287,4]
[365804031,1749924643891,-220.0,0.00023287,4]
[365804032,1749924643900,-522.2,0.00023287,4]
[365804033,1749924643910,-1305.16,0.00023287,4]
[365804034,1749924643919,-1489.11,0.00023287,4]
[365804035,1749924643929,-460.0,0.00023287,4]
[365804036,1749924643939,-1020.4,0.00023287,4]
[365804037,1749924643948,-2400.67,0.00023287,4]
[365804038,1749924643958,-542.66,0.00023287,4]
[365804039,1749924643968,-460.0,0.00023287,4]
[365804040,1749924643977,-2715.38,0.00023287,4]
[365804041,1749924643986,-714.26,0.00023287,2]
[365804042,1749924643996,-3104.67,0.00023287,4]
[365804043,1749924644005,-1433.54,0.00023287,4]
[365804044,1749924644015,-478.13,0.00023287,4]
[365804045,1749924644024,-460.0,0.00023287,4]
[365804046,1749924644034,-2666.98,0.00023287,4]
[365804047,1749924644044,-460.0,0.00023287,4]
[365804048,1749924644054,-460.0,0.00023287,4]
[365804049,1749924644064,-460.0,0.00023287,4]
[365804050,1749924644073,-1487.25,0.00023287,4]
[365804051,1749924644082,-1782.67,0.00023287,4]
[365804052,1749924644092,-2215.93,0.00023287,4]
[365804053,1749924644102,-2884.29,0.00023287,4]
[365804054,1749924644111,-460.0,0.00023287,4]
[365804055,1749924644120,-1040.75,0.00023287,4]
[365804056,1749924644131,-460.0,0.00023287,4]
[365804057,1749924644140,-1157.61,0.00023287,4]
[365804058,1749924644150,-380.0,0.00023287,4]
[365804059,1749924644160,-504.86,0.00023287,4]
[365804060,1749924644169,-928.55,0.00023287,4]
[365804061,1749924644178,-1529.6,0.00023287,4]
[365804062,1749924644188,-151.0,0.00023307,7]
[365804063,1749924644197,-151.0,0.00023307,7]
[365804064,1749924644207,-164.389164,0.00023307,7]
[365804065,1749924644217,-164.389164,0.00023307,7]
[365804066,1749924644228,-176.9937618,0.00023342,2]
[365804067,1749924644238,-153.0,0.00023342,2]
[365804068,1749924644248,-573.7859869,0.00023342,2]
[365804069,1749924644259,-158.4438925,0.00023342,2]
[365804070,1749924644269,-153.0,0.00023342,2]
[365804071,1749924644279,-153.0,0.00023342,2]
[365804072,1749924644289,-153.0,0.00023342,2]
[365804073,1749924644298,-153.0,0.00023342,2]
[365804074,1749924644308,-600.0,0.00023346,2]
[365804075,1749924644318,-92951.72588786,0.0002335,2]
[365804076,1749924644328,-151.0,0.0002335,7]
[365804077,1749924644338,-151.0,0.0002335,7]
[365804078,1749924644348,-151.0,0.0002335,7]
[365804079,1749924644357,-179.306687,0.0002335,7]
[365804080,1749924644367,-151.0,0.0002335,7]
[365804081,1749924644376,-151.0,0.0002335,7]
[365804082,1749924644386,-151.0,0.0002335,7]
[365804083,1749924644398,-151.0,0.0002335,7]
[365804084,1749924644408,-151.0,0.0002335,7]
[365804085,1749924644418,-164.389164,0.0002335,7]
[365804086,1749924644428,-164.389164,0.0002335,7]
[365804087,1749924644439,-518.678294,0.0002335,2]
[365804088,1749924644449,-518.678294,0.0002335,2]
[365804089,1749924644459,-152.89444,0.0002335,7]
[365804090,1749924644469,-151.0,0.0002335,7]
[365804091,1749924644479,-151.0,0.0002335,7]
[365804092,1749924644489,-151.0,0.0002335,7]
[365804093,1749924644499,-151.0,0.0002335,7]
[365804094,1749924644508,-197.826638,0.0002335,7]
[365804095,1749924644518,-197.826638,0.0002335,7]
[365804096,1749924644527,-151.0,0.0002335,7]
[365804097,1749924644539,-185.0,0.0002335,7]
[365804098,1749924644549,-185.0,0.0002335,7]
[365804099,1749924644558,-197.139781,0.0002335,7]
[365804100,1749924644568,-197.139781,0.0002335,7]
[365804101,1749924644577,-154.732959,0.0002335,7]
[365804102,1749924644587,-721.94390946,0.00023361,2]
[365804103,1749924644597,-5188.43487911,0.00023364,2]
[365804104,1749924644606,-500.0,0.00023373,2]